[Event "Austrian Youth-ch U18 Boys 2024"]
[Site "Leibnitz"]
[Date "2024.03.26"]
[Round "4.2"]
[White "Borrmann, Laurenz"]
[Black "Ernst, Robert"]
[Result "1-0"]
[ECO "B52"]
[WhiteElo "2311"]
[BlackElo "2332"]
[Annotator "RC"]
[PlyCount "153"]
[EventDate "2024.03.23"]
[EventType "swiss"]
[EventCountry "AUT"]
[SourceTitle "playchess.com"]
[Source "ChessBase"]
[SourceQuality "1"]
[TimeControl "5400+30"]

1. e4 {[%emt 0:00:04]} c5 {[%emt 0:00:08]} 2. Nf3 {[%emt 0:00:06]} d6 {[%emt 0:00:05]} 3. Bb5+ {[%emt 0:00:05]} Bd7 {[%emt 0:00:07]} 4. Bxd7+ {[%emt 0:00:07]} Qxd7 {[%emt 0:00:06]} 5. O-O {[%emt 0:00:15]} Nc6 {[%emt 0:00:08]} 6. c3 {[%emt 0:00:07]} Nf6 {[%emt 0:00:07]} 7. Qe2 {[%emt 0:00:16]} e6 {[%emt 0:00:45]} 8. d4 {[%emt 0:00:13]} cxd4 {[%emt 0:00:06]} 9. cxd4 {[%emt 0:00:03]} d5 {[%emt 0:00:09]} 10. e5 {[%emt 0:00:11]} Ng8 {[%emt 0:00:07]} 11. b3 {[%emt 0:16:44]} Nge7 {[%emt 0:03:04]} 12. Ba3 {[%emt 0:03:27]} Nf5 {[%emt 0:00:39]} 13. Bxf8 {[%emt 0:01:26]} Kxf8 {[%emt 0:00:02]} 14. Qd2 {[%emt 0:01:56]} h5 {[%emt 0:25:21]} 15. Nc3 {[%emt 0:00:52]} g5 {[%emt 0:05:15]} 16. Qxg5 {[%emt 0:10:49]} Ncxd4 {[%emt 0:00:10]} 17. Nxd4 {[%emt 0:00:09]} Nxd4 {[%emt 0:00:02]} 18. Qf4 {[%emt 0:01:26]} Nf5 {[%emt 0:00:39]} 19. Rfd1 {[%emt 0:01:13]} Ne7 {[%emt 0:08:35]} 20. Ne4 {[%emt 0:06:19]} Ng6 {[%emt 0:00:46]} 21. Qg5 {[%emt 0:00:14]} Qd8 {[%emt 0:08:50]} 22. Nf6 {[%emt 0:00:42]} Rc8 {[%emt 0:00:45]} 23. Rac1 {[%emt 0:05:05]} Rxc1 {[%emt 0:04:12]} 24. Rxc1 {[%emt 0:00:05]} h4 {[%emt 0:00:20]} 25. h3 {[%emt 0:05:25]} Kg7 {[%emt 0:01:19]} 26. Qg4 {[%emt 0:07:57]} Kh6 {[%emt 0:08:30]} 27. Qd4 {[%emt 0:05:16]} Qb6 {[%emt 0:02:03]} 28. Rc5 {[%emt 0:01:38]} Kg7 {[%emt 0:03:15]} 29. Qc3 {[%emt 0:05:05]} Qa6 {[%emt 0:12:23]} 30. Qd2 {[%emt 0:00:43]} Qb6 {[%emt 0:08:46]} 31. b4 {[%emt 0:01:52]} Nxe5 {[%emt 0:00:22]} 32. Ng4 {[%emt 0:00:15]} Rh5 {[%emt 0:01:44]} 33. Nxe5 {[%emt 0:16:42]} Rxe5 {[%emt 0:00:02]} 34. Qd4 {[%emt 0:01:29]} f6 {[%emt 0:00:01]} 35. Qg4+ {[%emt 0:01:43]} Rg5 {[%emt 0:00:03]} 36. Qxh4 {[%emt 0:00:11]} Qd8 {[%emt 0:00:00]} 37. Qd4 {[%emt 0:01:15]} Qd7 {[%emt 0:01:22]} 38. f4 {[%emt 0:02:32]} Rg3 {[%emt 0:00:42]} 39. f5 {[%emt 0:01:34]} b6 {[%emt 0:02:30]} 40. fxe6 {[%emt 0:00:48]} Qxe6 {[%emt 0:00:02]} 41. Rxd5 {[%emt 0:00:23]} Qe2 {[%emt 0:00:19]} 42. Rd7+ {[%emt 0:01:16]} Kg6 {[%emt 0:00:15]} 43. Qd5 {[%emt 0:00:11]} Kh6 {[%emt 0:06:11]} 44. Rd8 {[%emt 0:00:53]} Rg5 {[%emt 0:01:25]} 45. Rh8+ {[%emt 0:00:31]} Kg6 {[%emt 0:00:00]} 46. Qg8+ {[%emt 0:01:30]} Kf5 {[%emt 0:00:01]} 47. Qc8+ {[%emt 0:00:01]} Kg6 {[%emt 0:01:37]} 48. Rg8+ {[%emt 0:01:33]} Kh7 {[%emt 0:00:06]} 49. Rxg5 {[%emt 0:00:42]} Qe3+ {[%emt 0:00:26]} 50. Kh2 {[%emt 0:00:13]} fxg5 {[%emt 0:00:01]} 51. Qc7+ {[%emt 0:00:16]} Kg6 {[%emt 0:00:23]} 52. Qd6+ {[%emt 0:00:38]} Kg7 {[%emt 0:00:27]} 53. Qg3 {[%emt 0:00:07]} Qe7 {[%emt 0:00:54]} 54. h4 {[%emt 0:00:05]} Qxb4 {[%emt 0:00:08]} 55. Qxg5+ {[%emt 0:00:03]} Kh7 {[%emt 0:00:42]} 56. h5 {[%emt 0:00:38]} Qd6+ {[%emt 0:00:14]} 57. Kh3 {[%emt 0:01:32]} Qe6+ {[%emt 0:00:18]} 58. Kh4 {[%emt 0:00:15]} Qxa2 {[%emt 0:01:24]} 59. Qf5+ {[%emt 0:00:29]} Kh8 {[%emt 0:00:31]} 60. Qf6+ {[%emt 0:00:32]} Kh7 {[%emt 0:00:46]} 61. Qe7+ {[%emt 0:00:51]} Kh6 {[%emt 0:00:44]} 62. Qe3+ {[%emt 0:00:23]} Kh7 {[%emt 0:00:07]} 63. g4 {[%emt 0:00:18]} Qh2+ {[%emt 0:00:23]} 64. Kg5 {[%emt 0:00:01]} Qd6 {[%emt 0:00:14]} 65. Qe4+ {[%emt 0:00:09]} Kg7 {[%emt 0:00:08]} 66. Qb7+ {[%emt 0:00:08]} Kg8 {[%emt 0:00:36]} 67. Qa8+ {[%emt 0:00:06]} Qf8 {[%emt 0:01:03]} 68. Qxf8+ {[%emt 0:01:09]} Kxf8 {[%emt 0:00:00]} 69. Kf6 {[%emt 0:00:13]} a5 {[%emt 0:01:03]} 70. h6 {[%emt 0:00:14]} Kg8 {[%emt 0:00:02]} 71. g5 {[%emt 0:00:07]} a4 {[%emt 0:00:03]} 72. g6 {[%emt 0:00:05]} a3 {[%emt 0:00:04]} 73. h7+ {[%emt 0:00:06]} Kh8 {[%emt 0:00:06]} 74. g7+ {[%emt 0:00:09]} Kxh7 {[%emt 0:00:04]} 75. Kf7 {[%emt 0:00:03]} a2 {[%emt 0:00:05]} 76. g8=Q+ {[%emt 0:00:07]} Kh6 {[%emt 0:00:03]} 77. Qg6# {[%emt 0:00:05]} 1-0

[Event "Austrian Youth-ch U18 Boys 2024"]
[Site "Leibnitz"]
[Date "2024.03.26"]
[Round "4.3"]
[White "Miazhynski, Michael"]
[Black "Lerch, Johannes"]
[Result "1/2-1/2"]
[ECO "C02"]
[WhiteElo "2178"]
[BlackElo "2258"]
[Annotator "RC"]
[PlyCount "60"]
[EventDate "2024.03.23"]
[EventType "swiss"]
[EventCountry "AUT"]
[SourceTitle "playchess.com"]
[Source "ChessBase"]
[SourceQuality "1"]
[TimeControl "5400+30"]

1. e4 {[%emt 0:00:03]} e6 {[%emt 0:00:07]} 2. d4 {[%emt 0:00:35]} d5 {[%emt 0:00:06]} 3. e5 {[%emt 0:00:06]} c5 {[%emt 0:00:06]} 4. c3 {[%emt 0:00:04]} Nc6 {[%emt 0:00:06]} 5. Nf3 {[%emt 0:00:04]} Bd7 {[%emt 0:00:07]} 6. Be2 {[%emt 0:02:02]} f6 {[%emt 0:00:21]} 7. O-O {[%emt 0:00:46]} fxe5 {[%emt 0:00:19]} 8. dxe5 {[%emt 0:02:01]} Qc7 {[%emt 0:00:27]} 9. Bf4 {[%emt 0:03:30]} Nh6 {[%emt 0:00:49]} 10. Re1 {[%emt 0:06:46]} Nf7 {[%emt 0:00:51]} 11. Nbd2 {[%emt 0:00:41]} Be7 {[%emt 0:00:58]} 12. Bg3 {[%emt 0:02:48]} g5 {[%emt 0:06:16]} 13. h3 {[%emt 0:04:02]} O-O-O {[%emt 0:03:14]} 14. c4 {[%emt 0:08:58]} d4 {[%emt 0:00:55]} 15. Ne4 {[%emt 0:07:12]} h5 {[%emt 0:07:09]} 16. Nfd2 {[%emt 0:14:20]} h4 {[%emt 0:21:07]} 17. Bh2 {[%emt 0:01:06]} Nfxe5 {[%emt 0:01:33]} 18. Nb3 {[%emt 0:01:09]} Qb6 {[%emt 0:04:14]} 19. Rb1 {[%emt 0:04:16]} Rhf8 {[%emt 0:17:00]} 20. a3 {[%emt 0:09:40]} Rf4 {[%emt 0:09:15]} 21. Bxf4 {[%emt 0:07:59]} gxf4 {[%emt 0:00:04]} 22. Nbxc5 {[%emt 0:01:44]} Bxc5 {[%emt 0:04:49]} 23. b4 {[%emt 0:00:01]} Be7 {[%emt 0:05:10]} 24. c5 {[%emt 0:00:10]} Qc7 {[%emt 0:00:05]} 25. b5 {[%emt 0:00:21]} Rg8 {[%emt 0:04:07]} 26. bxc6 {[%emt 0:09:01]} Bxc6 {[%emt 0:00:07]} 27. Bg4 {[%emt 0:00:03]} Nxg4 {[%emt 0:02:20]} 28. hxg4 {[%emt 0:00:01]} e5 {[%emt 0:00:15]} 29. Qb3 {[%emt 0:00:24]} Re8 {[%emt 0:03:51]} 30. g5 {[%emt 0:10:45]} Kb8 {[%emt 0:04:42]} 1/2-1/2

[Event "Austrian Youth-ch U18 Boys 2024"]
[Site "Leibnitz"]
[Date "2024.03.26"]
[Round "4.4"]
[White "Wendl, Philipp"]
[Black "Hengl, Philip"]
[Result "1-0"]
[ECO "D41"]
[WhiteElo "2237"]
[BlackElo "2145"]
[Annotator "RC"]
[PlyCount "71"]
[EventDate "2024.03.23"]
[EventType "swiss"]
[EventCountry "AUT"]
[SourceTitle "playchess.com"]
[Source "ChessBase"]
[SourceQuality "1"]
[TimeControl "5400+30"]

1. c4 {[%emt 0:00:06]} e6 {[%emt 0:00:11]} 2. Nc3 {[%emt 0:00:20]} d5 {[%emt 0:00:11]} 3. d4 {[%emt 0:00:05]} Nf6 {[%emt 0:00:07]} 4. cxd5 {[%emt 0:00:05]} Nxd5 {[%emt 0:00:08]} 5. e4 {[%emt 0:00:07]} Nxc3 {[%emt 0:00:04]} 6. bxc3 {[%emt 0:00:05]} c5 {[%emt 0:00:05]} 7. Nf3 {[%emt 0:00:05]} cxd4 {[%emt 0:00:08]} 8. cxd4 {[%emt 0:00:06]} Bb4+ {[%emt 0:00:04]} 9. Bd2 {[%emt 0:00:05]} Bxd2+ {[%emt 0:00:03]} 10. Qxd2 {[%emt 0:00:06]} O-O {[%emt 0:00:06]} 11. Bc4 {[%emt 0:00:25]} Nd7 {[%emt 0:00:27]} 12. O-O {[%emt 0:00:19]} b6 {[%emt 0:00:05]} 13. Rfe1 {[%emt 0:01:09]} Bb7 {[%emt 0:00:12]} 14. Rad1 {[%emt 0:00:06]} Rc8 {[%emt 0:00:08]} 15. Bb3 {[%emt 0:00:07]} h6 {[%emt 0:02:03]} 16. h3 {[%emt 0:01:49]} Qf6 {[%emt 0:05:29]} 17. Qe3 {[%emt 0:12:41]} Rfe8 {[%emt 0:07:21]} 18. Rc1 {[%emt 0:06:23]} Qe7 {[%emt 0:16:06]} 19. Qd3 {[%emt 0:10:16]} Qa3 {[%emt 0:03:39]} 20. Rcd1 {[%emt 0:01:30]} Red8 {[%emt 0:05:06]} 21. Qe3 {[%emt 0:03:24]} a5 {[%emt 0:07:39]} 22. d5 {[%emt 0:05:27]} exd5 {[%emt 0:02:35]} 23. Nd4 {[%emt 0:12:16]} Nc5 {[%emt 0:22:00]} 24. e5 {[%emt 0:18:20]} Ne6 {[%emt 0:09:33]} 25. Nxe6 {[%emt 0:07:05]} fxe6 {[%emt 0:00:01]} 26. Bxd5 {[%emt 0:01:10]} Qe7 {[%emt 0:02:45]} 27. Bb3 {[%emt 0:00:58]} b5 {[%emt 0:02:57]} 28. Qb6 {[%emt 0:01:40]} Bd5 {[%emt 0:02:07]} 29. Bxd5 {[%emt 0:00:17]} exd5 {[%emt 0:00:01]} 30. Qxb5 {[%emt 0:01:45]} Rc5 {[%emt 0:00:52]} 31. Qb6 {[%emt 0:01:21]} d4 {[%emt 0:00:45]} 32. Qb3+ {[%emt 0:00:56]} Kh8 {[%emt 0:00:14]} 33. e6 {[%emt 0:00:24]} Rcd5 {[%emt 0:01:24]} 34. Rd3 {[%emt 0:01:02]} R8d6 {[%emt 0:00:08]} 35. Qc2 {[%emt 0:01:09]} Rb5 {[%emt 0:04:09]} 36. Rf3 {[%emt 0:15:21]} 1-0

[Event "Austrian Youth-ch U18 Boys 2024"]
[Site "Leibnitz"]
[Date "2024.03.26"]
[Round "4.5"]
[White "Zaytsev, Alexander"]
[Black "Marakovits, Nico"]
[Result "1/2-1/2"]
[ECO "B33"]
[WhiteElo "2018"]
[BlackElo "2234"]
[Annotator "RC"]
[PlyCount "82"]
[EventDate "2024.03.23"]
[EventType "swiss"]
[EventCountry "AUT"]
[SourceTitle "playchess.com"]
[Source "ChessBase"]
[SourceQuality "1"]
[TimeControl "5400+30"]

1. e4 {[%emt 0:00:03]} c5 {[%emt 0:00:07]} 2. Nf3 {[%emt 0:00:32]} Nc6 {[%emt 0:00:05]} 3. d4 {[%emt 0:00:31]} cxd4 {[%emt 0:00:06]} 4. Nxd4 {[%emt 0:00:13]} Nf6 {[%emt 0:00:05]} 5. Nc3 {[%emt 0:01:00]} e5 {[%emt 0:00:05]} 6. Ndb5 {[%emt 0:00:13]} d6 {[%emt 0:00:05]} 7. Bg5 {[%emt 0:00:39]} a6 {[%emt 0:00:07]} 8. Na3 {[%emt 0:00:53]} b5 {[%emt 0:00:25]} 9. Nd5 {[%emt 0:00:11]} Be7 {[%emt 0:00:03]} 10. Bxf6 {[%emt 0:00:12]} Bxf6 {[%emt 0:00:03]} 11. c4 {[%emt 0:00:21]} b4 {[%emt 0:00:03]} 12. Nc2 {[%emt 0:00:06]} O-O {[%emt 0:00:04]} 13. g3 {[%emt 0:00:43]} a5 {[%emt 0:01:09]} 14. Bg2 {[%emt 0:00:39]} Bg5 {[%emt 0:00:07]} 15. O-O {[%emt 0:00:23]} Ne7 {[%emt 0:00:09]} 16. Nxe7+ {[%emt 0:09:45]} Qxe7 {[%emt 0:00:18]} 17. Qd3 {[%emt 0:01:55]} Be6 {[%emt 0:09:31]} 18. b3 {[%emt 0:03:11]} Qc7 {[%emt 0:07:44]} 19. Rad1 {[%emt 0:04:27]} Rfd8 {[%emt 0:05:43]} 20. Kh1 {[%emt 0:04:33]} Qc5 {[%emt 0:16:29]} 21. f4 {[%emt 0:07:20]} Be7 {[%emt 0:07:34]} 22. Ne3 {[%emt 0:02:20]} f6 {[%emt 0:00:40]} 23. Nd5 {[%emt 0:05:13]} Bf8 {[%emt 0:06:58]} 24. f5 {[%emt 0:05:19]} Bf7 {[%emt 0:04:26]} 25. Qe2 {[%emt 0:06:18]} a4 {[%emt 0:01:28]} 26. Qf2 {[%emt 0:02:01]} Qxf2 {[%emt 0:02:01]} 27. Rxf2 {[%emt 0:00:03]} axb3 {[%emt 0:00:11]} 28. axb3 {[%emt 0:00:55]} Ra3 {[%emt 0:00:19]} 29. Nxb4 {[%emt 0:09:26]} Rxb3 {[%emt 0:03:07]} 30. Nd5 {[%emt 0:02:52]} Rc8 {[%emt 0:00:20]} 31. Rc1 {[%emt 0:05:45]} Rd3 {[%emt 0:06:10]} 32. Bf1 {[%emt 0:03:07]} Rd4 {[%emt 0:00:17]} 33. Re1 {[%emt 0:00:31]} Bh5 {[%emt 0:06:22]} 34. Kg2 {[%emt 0:06:39]} Be8 {[%emt 0:06:55]} 35. Rb2 {[%emt 0:01:25]} Bc6 {[%emt 0:00:40]} 36. Re3 {[%emt 0:03:50]} Rd1 {[%emt 0:06:11]} 37. Be2 {[%emt 0:01:41]} Rc1 {[%emt 0:01:14]} 38. Reb3 {[%emt 0:01:32]} Re1 {[%emt 0:02:26]} 39. Kf2 {[%emt 0:00:43]} Rh1 {[%emt 0:01:10]} 40. Kg2 {[%emt 0:00:37]} Re1 {[%emt 0:00:15]} 41. Kf2 {[%emt 0:00:13]} Rh1 {[%emt 0:00:51]} 1/2-1/2

[Event "Austrian Youth-ch U18 Boys 2024"]
[Site "Leibnitz"]
[Date "2024.03.26"]
[Round "4.6"]
[White "Kuti, Oliver"]
[Black "Kienboeck, Benjamin"]
[Result "1-0"]
[ECO "B10"]
[WhiteElo "2006"]
[BlackElo "2219"]
[Annotator "RC"]
[PlyCount "79"]
[EventDate "2024.03.23"]
[EventType "swiss"]
[EventCountry "AUT"]
[SourceTitle "playchess.com"]
[Source "ChessBase"]
[SourceQuality "1"]
[TimeControl "5400+30"]

1. e4 {[%emt 0:00:03]} c6 {[%emt 0:00:08]} 2. Nf3 {[%emt 0:00:06]} d5 {[%emt 0:00:07]} 3. exd5 {[%emt 0:00:06]} cxd5 {[%emt 0:00:23]} 4. Ne5 {[%emt 0:00:11]} Nc6 {[%emt 0:01:45]} 5. d4 {[%emt 0:00:22]} e6 {[%emt 0:11:00]} 6. Bb5 {[%emt 0:00:40]} Bd7 {[%emt 0:00:36]} 7. Nxd7 {[%emt 0:00:38]} Qxd7 {[%emt 0:00:08]} 8. c3 {[%emt 0:00:09]} Nf6 {[%emt 0:00:28]} 9. O-O {[%emt 0:00:20]} Be7 {[%emt 0:00:36]} 10. Nd2 {[%emt 0:02:12]} a6 {[%emt 0:00:35]} 11. Bd3 {[%emt 0:02:39]} O-O {[%emt 0:02:58]} 12. Re1 {[%emt 0:03:52]} Rfc8 {[%emt 0:03:24]} 13. Nf3 {[%emt 0:02:31]} Qc7 {[%emt 0:03:01]} 14. Ne5 {[%emt 0:06:02]} Nxe5 {[%emt 0:04:03]} 15. dxe5 {[%emt 0:00:10]} Nd7 {[%emt 0:00:28]} 16. Bf4 {[%emt 0:09:09]} Nf8 {[%emt 0:05:29]} 17. Qg4 {[%emt 0:11:57]} b5 {[%emt 0:10:55]} 18. a3 {[%emt 0:04:40]} Rab8 {[%emt 0:01:16]} 19. h4 {[%emt 0:11:47]} a5 {[%emt 0:08:52]} 20. h5 {[%emt 0:04:38]} Rb6 {[%emt 0:01:23]} 21. Re3 {[%emt 0:11:10]} b4 {[%emt 0:05:22]} 22. Bh6 {[%emt 0:07:35]} g6 {[%emt 0:00:18]} 23. cxb4 {[%emt 0:01:30]} axb4 {[%emt 0:01:51]} 24. Rg3 {[%emt 0:01:01]} Qxe5 {[%emt 0:06:38]} 25. Bxf8 {[%emt 0:02:27]} Bxf8 {[%emt 0:00:55]} 26. hxg6 {[%emt 0:01:56]} hxg6 {[%emt 0:00:19]} 27. Bxg6 {[%emt 0:02:13]} fxg6 {[%emt 0:00:08]} 28. Qxg6+ {[%emt 0:00:05]} Bg7 {[%emt 0:00:10]} 29. axb4 {[%emt 0:00:33]} Rxb4 {[%emt 0:02:39]} 30. Rg5 {[%emt 0:00:41]} Qxg5 {[%emt 0:17:10]} 31. Qxg5 {[%emt 0:00:05]} Rb7 {[%emt 0:00:18]} 32. Ra6 {[%emt 0:03:33]} Re8 {[%emt 0:00:33]} 33. Qg6 {[%emt 0:01:47]} Rbe7 {[%emt 0:00:14]} 34. b4 {[%emt 0:00:28]} e5 {[%emt 0:01:01]} 35. b5 {[%emt 0:01:25]} d4 {[%emt 0:00:25]} 36. b6 {[%emt 0:02:09]} e4 {[%emt 0:00:08]} 37. b7 {[%emt 0:03:20]} Rb8 {[%emt 0:01:17]} 38. Ra8 {[%emt 0:00:41]} Rexb7 {[%emt 0:00:07]} 39. Qe6+ {[%emt 0:00:33]} Kh8 {[%emt 0:00:03]} 40. Ra5 {[%emt 0:00:29]} 1-0

[Event "Austrian Youth-ch U18 Boys 2024"]
[Site "Leibnitz"]
[Date "2024.03.26"]
[Round "4.7"]
[White "Wagner, Leopold Franziskus"]
[Black "Hake, Nils"]
[Result "1/2-1/2"]
[ECO "B54"]
[WhiteElo "2228"]
[BlackElo "1992"]
[Annotator "RC"]
[PlyCount "68"]
[EventDate "2024.03.23"]
[EventType "swiss"]
[EventCountry "AUT"]
[SourceTitle "playchess.com"]
[Source "ChessBase"]
[SourceQuality "1"]
[TimeControl "5400+30"]

1. e4 {[%emt 0:00:04]} c5 {[%emt 0:00:07]} 2. Nf3 {[%emt 0:00:16]} e6 {[%emt 0:00:07]} 3. d4 {[%emt 0:00:14]} cxd4 {[%emt 0:00:08]} 4. Nxd4 {[%emt 0:00:08]} Nc6 {[%emt 0:00:05]} 5. Nc3 {[%emt 0:00:43]} d6 {[%emt 0:00:10]} 6. g4 {[%emt 0:01:20]} Nge7 {[%emt 0:00:11]} 7. Bg2 {[%emt 0:03:56]} Nxd4 {[%emt 0:00:43]} 8. Qxd4 {[%emt 0:00:21]} Nc6 {[%emt 0:00:23]} 9. Qd1 {[%emt 0:02:45]} Be7 {[%emt 0:00:41]} 10. Be3 {[%emt 0:03:35]} a6 {[%emt 0:02:24]} 11. h3 {[%emt 0:09:46]} b5 {[%emt 0:02:52]} 12. Ne2 {[%emt 0:04:28]} Bb7 {[%emt 0:03:51]} 13. Qd2 {[%emt 0:01:07]} Qa5 {[%emt 0:04:09]} 14. Qxa5 {[%emt 0:07:09]} Nxa5 {[%emt 0:01:21]} 15. b3 {[%emt 0:00:36]} Rc8 {[%emt 0:08:28]} 16. O-O-O {[%emt 0:01:55]} Nc6 {[%emt 0:06:08]} 17. Kb1 {[%emt 0:03:31]} O-O {[%emt 0:09:00]} 18. f4 {[%emt 0:05:16]} d5 {[%emt 0:08:45]} 19. c3 {[%emt 0:07:14]} dxe4 {[%emt 0:05:04]} 20. Bxe4 {[%emt 0:00:03]} Ba8 {[%emt 0:05:12]} 21. Rhf1 {[%emt 0:06:44]} Rcd8 {[%emt 0:03:09]} 22. Bb6 {[%emt 0:09:18]} Rb8 {[%emt 0:00:45]} 23. Bc7 {[%emt 0:02:08]} Rbc8 {[%emt 0:01:48]} 24. Bd6 {[%emt 0:01:34]} Bxd6 {[%emt 0:03:05]} 25. Rxd6 {[%emt 0:00:02]} Ne7 {[%emt 0:00:57]} 26. Bxa8 {[%emt 0:04:11]} Rxa8 {[%emt 0:00:03]} 27. Rd7 {[%emt 0:07:59]} Nd5 {[%emt 0:01:56]} 28. f5 {[%emt 0:00:43]} Nf6 {[%emt 0:00:50]} 29. Rb7 {[%emt 0:01:14]} Ne4 {[%emt 0:06:01]} 30. Rd7 {[%emt 0:06:56]} e5 {[%emt 0:05:57]} 31. Kb2 {[%emt 0:01:39]} f6 {[%emt 0:01:17]} 32. h4 {[%emt 0:01:37]} Rac8 {[%emt 0:01:07]} 33. Rfd1 {[%emt 0:02:09]} Nc5 {[%emt 0:01:06]} 34. R7d5 {[%emt 0:00:26]} Ne4 {[%emt 0:02:01]} 1/2-1/2

[Event "Austrian Youth-ch U18 Boys 2024"]
[Site "Leibnitz"]
[Date "2024.03.26"]
[Round "4.8"]
[White "Karner, Daniel"]
[Black "Hofstadler, Mario"]
[Result "1/2-1/2"]
[ECO "A38"]
[WhiteElo "1935"]
[BlackElo "2104"]
[Annotator "RC"]
[PlyCount "144"]
[EventDate "2024.03.23"]
[EventType "swiss"]
[EventCountry "AUT"]
[SourceTitle "playchess.com"]
[Source "ChessBase"]
[SourceQuality "1"]
[TimeControl "5400+30"]

1. c4 {[%emt 0:00:11]} g6 {[%emt 0:00:35]} 2. g3 {[%emt 0:00:24]} c5 {[%emt 0:00:46]} 3. Bg2 {[%emt 0:00:36]} Bg7 {[%emt 0:00:12]} 4. Nc3 {[%emt 0:00:41]} Nc6 {[%emt 0:00:14]} 5. a3 {[%emt 0:00:26]} d6 {[%emt 0:03:51]} 6. Rb1 {[%emt 0:07:52]} a5 {[%emt 0:04:04]} 7. d3 {[%emt 0:01:44]} Nf6 {[%emt 0:03:19]} 8. Nf3 {[%emt 0:07:06]} O-O {[%emt 0:00:22]} 9. O-O {[%emt 0:00:05]} Bf5 {[%emt 0:01:28]} 10. e4 {[%emt 0:02:44]} Bg4 {[%emt 0:00:16]} 11. h3 {[%emt 0:00:10]} Bxf3 {[%emt 0:00:07]} 12. Bxf3 {[%emt 0:00:23]} Ne8 {[%emt 0:00:55]} 13. Bg2 {[%emt 0:01:46]} Nc7 {[%emt 0:00:37]} 14. Kh2 {[%emt 0:07:22]} Rb8 {[%emt 0:10:56]} 15. Qa4 {[%emt 0:12:34]} Ne6 {[%emt 0:09:07]} 16. f4 {[%emt 0:03:05]} Ned4 {[%emt 0:01:38]} 17. Be3 {[%emt 0:01:08]} e6 {[%emt 0:09:43]} 18. Nb5 {[%emt 0:12:14]} Nxb5 {[%emt 0:08:08]} 19. cxb5 {[%emt 0:00:13]} Nd4 {[%emt 0:01:04]} 20. Bd2 {[%emt 0:05:16]} b6 {[%emt 0:02:39]} 21. Qc4 {[%emt 0:04:11]} Qd7 {[%emt 0:05:26]} 22. a4 {[%emt 0:00:06]} Rbd8 {[%emt 0:02:51]} 23. Qc1 {[%emt 0:06:42]} Nb3 {[%emt 0:09:24]} 24. Qd1 {[%emt 0:00:17]} Nd4 {[%emt 0:01:15]} 25. Bc3 {[%emt 0:00:53]} Rfe8 {[%emt 0:01:08]} 26. Qd2 {[%emt 0:04:18]} Rc8 {[%emt 0:05:12]} 27. b3 {[%emt 0:01:58]} Qe7 {[%emt 0:01:54]} 28. Ba1 {[%emt 0:02:17]} Rcd8 {[%emt 0:00:30]} 29. Rfe1 {[%emt 0:03:36]} h5 {[%emt 0:02:57]} 30. Bc3 {[%emt 0:02:38]} Rd7 {[%emt 0:00:59]} 31. Ba1 {[%emt 0:01:32]} Kh7 {[%emt 0:00:29]} 32. Bc3 {[%emt 0:00:55]} Rc8 {[%emt 0:00:11]} 33. Ba1 {[%emt 0:02:54]} Rdc7 {[%emt 0:01:39]} 34. Rec1 {[%emt 0:00:56]} Rd8 {[%emt 0:01:26]} 35. Re1 {[%emt 0:01:09]} Rdc8 {[%emt 0:02:29]} 36. Rec1 {[%emt 0:00:08]} h4 {[%emt 0:00:16]} 37. g4 {[%emt 0:01:24]} e5 {[%emt 0:02:24]} 38. Bxd4 {[%emt 0:02:30]} cxd4 {[%emt 0:00:12]} 39. Rc4 {[%emt 0:00:19]} exf4 {[%emt 0:00:41]} 40. Bf3 {[%emt 0:01:28]} Rc5 {[%emt 0:01:55]} 41. Kg2 {[%emt 0:00:34]} Be5 {[%emt 0:00:49]} 42. Re1 {[%emt 0:01:12]} Qg5 {[%emt 0:01:19]} 43. Qe2 {[%emt 0:01:26]} Kh8 {[%emt 0:01:37]} 44. Kh1 {[%emt 0:00:34]} R8c7 {[%emt 0:01:08]} 45. Rg1 {[%emt 0:01:19]} Bf6 {[%emt 0:00:10]} 46. Re1 {[%emt 0:00:32]} Bg7 {[%emt 0:00:26]} 47. Rg1 {[%emt 0:00:05]} Re7 {[%emt 0:00:14]} 48. Qf2 {[%emt 0:00:30]} Re6 {[%emt 0:01:30]} 49. Kh2 {[%emt 0:00:16]} Kg8 {[%emt 0:00:34]} 50. Kh1 {[%emt 0:00:05]} Re7 {[%emt 0:00:56]} 51. Kh2 {[%emt 0:00:18]} Re8 {[%emt 0:00:05]} 52. Kh1 {[%emt 0:00:03]} Bf6 {[%emt 0:02:27]} 53. Re1 {[%emt 0:00:27]} Qe5 {[%emt 0:00:51]} 54. Re2 {[%emt 0:00:22]} Kg7 {[%emt 0:00:49]} 55. Kh2 {[%emt 0:00:18]} Rxc4 {[%emt 0:00:39]} 56. bxc4 {[%emt 0:00:05]} Qc5 {[%emt 0:00:06]} 57. Qe1 {[%emt 0:00:23]} Qa3 {[%emt 0:00:13]} 58. Qd1 {[%emt 0:00:06]} Be5 {[%emt 0:01:17]} 59. Kh1 {[%emt 0:01:07]} Kf6 {[%emt 0:00:24]} 60. Kh2 {[%emt 0:00:18]} Ke7 {[%emt 0:00:21]} 61. Kh1 {[%emt 0:00:46]} Kd7 {[%emt 0:00:04]} 62. Kg1 {[%emt 0:00:49]} Kc7 {[%emt 0:00:01]} 63. Kf1 {[%emt 0:00:32]} Rf8 {[%emt 0:00:08]} 64. Kg1 {[%emt 0:01:10]} f6 {[%emt 0:02:23]} 65. Kf1 {[%emt 0:00:20]} Qb4 {[%emt 0:00:32]} 66. Kg1 {[%emt 0:00:15]} Rg8 {[%emt 0:00:12]} 67. Kf1 {[%emt 0:00:07]} Qa3 {[%emt 0:00:31]} 68. Kg1 {[%emt 0:00:13]} f5 {[%emt 0:00:15]} 69. exf5 {[%emt 0:00:14]} gxf5 {[%emt 0:00:05]} 70. Rf2 {[%emt 0:00:34]} Qc3 {[%emt 0:00:40]} 71. Kg2 {[%emt 0:00:24]} Rg7 {[%emt 0:00:39]} 72. Kh1 {[%emt 0:00:55]} Qa3 {[%emt 0:01:04]} 1/2-1/2

[Event "Austrian Youth-ch U18 Boys 2024"]
[Site "Leibnitz"]
[Date "2024.03.26"]
[Round "5.1"]
[White "Balint, Peter"]
[Black "Borrmann, Laurenz"]
[Result "1/2-1/2"]
[ECO "C88"]
[WhiteElo "2345"]
[BlackElo "2311"]
[Annotator "RC"]
[PlyCount "68"]
[EventDate "2024.03.23"]
[EventType "swiss"]
[EventCountry "AUT"]
[SourceTitle "playchess.com"]
[Source "ChessBase"]
[SourceQuality "1"]
[TimeControl "5400+30"]

1. e4 {[%emt 0:00:04]} e5 {[%emt 0:00:40]} 2. Nf3 {[%emt 0:00:06]} Nc6 {[%emt 0:00:05]} 3. Bb5 {[%emt 0:00:05]} a6 {[%emt 0:01:16]} 4. Ba4 {[%emt 0:00:08]} Nf6 {[%emt 0:00:52]} 5. O-O {[%emt 0:00:56]} Be7 {[%emt 0:01:32]} 6. d3 {[%emt 0:00:07]} b5 {[%emt 0:01:17]} 7. Bb3 {[%emt 0:00:03]} d6 {[%emt 0:00:19]} 8. c3 {[%emt 0:06:59]} O-O {[%emt 0:00:32]} 9. a4 {[%emt 0:00:40]} Bb7 {[%emt 0:07:09]} 10. Re1 {[%emt 0:01:08]} Na5 {[%emt 0:03:06]} 11. Bc2 {[%emt 0:01:14]} c5 {[%emt 0:00:24]} 12. Nbd2 {[%emt 0:01:11]} Re8 {[%emt 0:04:03]} 13. Nf1 {[%emt 0:00:12]} Bf8 {[%emt 0:00:17]} 14. Ng3 {[%emt 0:03:24]} Nc6 {[%emt 0:03:10]} 15. h3 {[%emt 0:05:09]} d5 {[%emt 0:08:25]} 16. Bg5 {[%emt 0:25:29]} d4 {[%emt 0:01:41]} 17. Nf5 {[%emt 0:05:17]} h6 {[%emt 0:17:56]} 18. Bc1 {[%emt 0:04:06]} dxc3 {[%emt 0:00:52]} 19. bxc3 {[%emt 0:00:06]} c4 {[%emt 0:06:52]} 20. dxc4 {[%emt 0:14:41]} bxc4 {[%emt 0:03:02]} 21. Qe2 {[%emt 0:03:31]} Na5 {[%emt 0:01:03]} 22. Rd1 {[%emt 0:12:38]} Qc7 {[%emt 0:00:53]} 23. Ba3 {[%emt 0:01:21]} Bxa3 {[%emt 0:01:24]} 24. Rxa3 {[%emt 0:00:04]} Rad8 {[%emt 0:00:22]} 25. Raa1 {[%emt 0:00:34]} Nb3 {[%emt 0:12:48]} 26. Rab1 {[%emt 0:00:42]} Nc5 {[%emt 0:01:40]} 27. Qxc4 {[%emt 0:03:37]} Bxe4 {[%emt 0:00:35]} 28. Bxe4 {[%emt 0:00:31]} Nfxe4 {[%emt 0:00:09]} 29. Rxd8 {[%emt 0:01:54]} Rxd8 {[%emt 0:05:46]} 30. Re1 {[%emt 0:00:40]} Nxf2 {[%emt 0:04:54]} 31. Nxe5 {[%emt 0:04:01]} Rd2 {[%emt 0:01:15]} 32. Qf4 {[%emt 0:01:22]} Nce4 {[%emt 0:02:03]} 33. Rxe4 {[%emt 0:02:19]} Nxe4 {[%emt 0:00:04]} 34. Qxe4 {[%emt 0:00:08]} Rd1+ {[%emt 0:02:02]} 1/2-1/2